fUST/lending_fUST_20250716
["ID","MTS","AMOUNT","RATE_DAILY","PERIOD"]
[372413025,1752634251371,-460.0,0.00020344,2]
[372413026,1752634251382,-460.0,0.00020344,2]
[372413027,1752634251395,-460.0,0.00020344,2]
[372413028,1752634251412,-460.0,0.00020344,2]
[372413029,1752634251426,-460.0,0.00020344,2]
[372413030,1752634251439,-460.0,0.00020344,2]
[372413031,1752634251451,-460.0,0.00020344,2]
[372413032,1752634251466,-648.37,0.00020344,2]
[372413033,1752634251478,-460.0,0.00020344,2]
[372413034,1752634251491,-460.0,0.00020344,2]
[372413035,1752634251504,-460.0,0.00020344,2]
[372413036,1752634251519,-460.0,0.00020344,2]
[372413037,1752634251532,-422.89262817,0.00020344,2]
[372413038,1752634251549,-37.10737183,0.00020344,2]
[372413039,1752634251561,-460.0,0.00020344,2]
[372413040,1752634251575,-410.0,0.00020344,2]
[372413041,1752634251587,-460.0,0.00020344,2]
[372413042,1752634251600,-460.0,0.00020344,2]
[372413043,1752634251613,-460.0,0.00020344,2]
[372413044,1752634251625,-460.0,0.00020344,2]
[372413045,1752634251637,-460.0,0.00020344,2]
[372413046,1752634251650,-460.0,0.00020344,2]
[372413047,1752634251663,-460.0,0.00020344,2]
[372413048,1752634251676,-460.0,0.00020344,2]
[372413049,1752634251689,-460.0,0.00020344,2]
[372413050,1752634251703,-460.0,0.00020344,2]
[372413051,1752634251715,-460.0,0.00020344,2]
[372413052,1752634251725,-507.49,0.00020345,2]
[372413053,1752634251735,-460.0,0.00020345,2]
[372413054,1752634251744,-270.66,0.00020345,2]
[372413055,1752634251757,-460.0,0.00020346,2]
[372413056,1752634251767,-460.0,0.00020346,2]
[372413057,1752634251776,-460.0,0.00020346,2]
[372413058,1752634251787,-460.0,0.00020346,2]
[372413059,1752634251798,-463.99450383,0.00020346,2]
[372413060,1752634251808,-460.0,0.00020346,2]
[372413061,1752634251818,-460.0,0.00020346,2]
[372413062,1752634251827,-474.19355131,0.00020346,2]
[372413063,1752634251837,-460.0,0.00020346,2]
[372413064,1752634251847,-460.0,0.00020346,2]
[372413065,1752634251857,-460.0,0.00020346,2]
[372413066,1752634251866,-460.0,0.00020346,2]
[372413067,1752634251876,-460.0,0.00020346,2]
[372413068,1752634251886,-460.0,0.00020346,2]
[372413069,1752634251896,-460.0,0.00020346,2]
[372413070,1752634251907,-460.0,0.00020346,2]
[372413071,1752634251916,-460.0,0.00020346,2]
[372413072,1752634251927,-460.0,0.00020346,2]
[372413073,1752634251937,-460.0,0.00020346,2]
[372413074,1752634251947,-460.0,0.00020346,2]
[372413075,1752634251957,-460.0,0.00020346,2]
[372413076,1752634251967,-330.21,0.000204,2]
[372413077,1752634252142,-881.31,0.000204,2]
[372413078,1752634252157,-506.89625273,0.00020405,2]
[372413079,1752634252167,-391.34605179,0.00020405,2]
[372413080,1752634252177,-500.0,0.00020405,2]
[372413081,1752634252187,-286.43562748,0.00020407,2]
[372413082,1752634252196,-349.44234312,0.00020407,2]
[372413083,1752634252206,-461.17750976,0.00020407,2]
[372413084,1752634252216,-359.54865265,0.00020407,2]
[372413085,1752634252228,-101.47738569,0.00020407,2]
[372413086,1752634252238,-500.58129809,0.00020407,2]
[372413087,1752634252248,-460.0,0.00020407,2]
[372413088,1752634252258,-460.0,0.00020407,2]
[372413089,1752634252268,-500.0,0.00020407,2]
[372413090,1752634252278,-282.98096923,0.00020407,2]
[372413091,1752634252289,-460.0,0.00020407,2]
[372413092,1752634252299,-460.0,0.00020407,2]
[372413093,1752634252309,-460.0,0.00020407,2]
[372413094,1752634252319,-460.0,0.00020407,2]
[372413095,1752634252329,-460.0,0.00020407,2]
[372413096,1752634252339,-460.0,0.00020407,2]
[372413097,1752634252349,-460.0,0.00020407,2]
[372413098,1752634252358,-460.0,0.00020407,2]
[372413099,1752634252368,-460.0,0.00020407,2]
[372413100,1752634252378,-460.0,0.00020407,2]
[372413101,1752634252388,-460.0,0.00020407,2]
[372413102,1752634252398,-504.16295986,0.00020407,2]
[372413103,1752634252407,-460.0,0.00020407,2]
[372413104,1752634252417,-460.0,0.00020407,2]
[372413105,1752634252427,-460.0,0.00020407,2]
[372413106,1752634252436,-460.0,0.00020407,2]
[372413107,1752634252446,-460.0,0.00020407,2]
[372413108,1752634252455,-460.0,0.00020407,2]
[372413109,1752634252465,-460.0,0.00020407,2]
[372413110,1752634252475,-460.0,0.00020407,2]
[372413111,1752634252484,-460.0,0.00020407,2]
[372413112,1752634252494,-460.0,0.00020407,2]
[372413113,1752634252504,-460.0,0.00020407,2]
[372413114,1752634252513,-552.51,0.00020407,2]
[372413115,1752634252523,-460.0,0.00020407,2]
[372413116,1752634252533,-460.0,0.00020407,2]
[372413117,1752634252543,-460.0,0.00020407,2]
[372413118,1752634252554,-460.0,0.00020407,2]
[372413119,1752634252563,-500.0,0.00020407,2]
[372413120,1752634252572,-460.0,0.00020407,2]
[372413121,1752634252582,-460.0,0.00020407,2]
[372413122,1752634252591,-460.80905307,0.00020408,2]
[372413123,1752634252601,-279.62667447,0.00020408,2]
[372413124,1752634252617,-460.0,0.00020408,2]
[372413125,1752634252631,-460.0,0.00020408,2]
[372413126,1752634252641,-461.83841633,0.00020408,2]
[372413127,1752634252651,-460.91136736,0.00020408,2]
[372413128,1752634252661,-460.0,0.00020408,2]
[372413129,1752634252671,-301.49191787,0.00020408,2]
[372413130,1752634252680,-460.0,0.00020408,2]
[372413131,1752634252690,-460.0,0.00020408,2]
[372413132,1752634252700,-460.0,0.00020408,2]
[372413133,1752634252710,-460.0,0.00020408,2]
[372413134,1752634252719,-462.50775425,0.00020408,2]
[372413135,1752634252729,-460.0,0.00020408,2]
[372413136,1752634252738,-460.0,0.00020408,2]
[372413137,1752634252750,-464.08415449,0.00020408,2]
[372413138,1752634252760,-460.0,0.00020408,2]
[372413139,1752634252770,-460.0,0.00020408,2]
[372413140,1752634252780,-461.91597558,0.00020408,2]
[372413141,1752634252791,-462.015484,0.00020408,2]
[372413142,1752634252802,-460.0,0.00020408,2]
[372413143,1752634252811,-461.88784664,0.00020408,2]
[372413144,1752634252821,-554.94199667,0.00020408,2]
[372413145,1752634252832,-460.0,0.00020408,2]
[372413146,1752634252842,-460.0,0.00020408,2]
[372413147,1752634252852,-460.0,0.00020408,2]
[372413148,1752634252862,-460.0,0.00020408,2]
[372413149,1752634252871,-460.0,0.00020408,2]
[372413150,1752634252881,-569.17456029,0.00020408,2]
[372413151,1752634252891,-460.0,0.00020408,2]
[372413152,1752634252901,-461.67658516,0.00020408,2]
[372413153,1752634252911,-460.0,0.00020408,2]
[372413154,1752634252920,-461.38794687,0.00020408,2]
[372413155,1752634252930,-460.0,0.00020408,2]
[372413156,1752634252940,-460.0,0.00020408,2]
[372413157,1752634252949,-460.0,0.00020408,2]
[372413158,1752634252959,-460.0,0.00020408,2]
[372413159,1752634252968,-460.0,0.00020408,2]
[372413160,1752634252978,-460.0,0.00020408,2]
[372413161,1752634252988,-460.0,0.00020408,2]
[372413162,1752634252997,-460.0,0.00020408,2]
[372413163,1752634253007,-460.0,0.00020408,2]
[372413164,1752634253016,-460.0,0.00020408,2]
[372413165,1752634253026,-460.0,0.00020408,2]
[372413166,1752634253036,-460.0,0.00020408,2]
[372413167,1752634253046,-460.0,0.00020408,2]
[372413168,1752634253056,-500.0,0.00020408,2]
[372413169,1752634253065,-500.0,0.00020408,2]
[372413170,1752634253075,-500.0,0.00020408,2]
[372413171,1752634253085,-500.0,0.00020408,2]
[372413172,1752634253094,-500.0,0.00020408,2]
[372413173,1752634253103,-199.96881203,0.00020408,2]
[372413174,1752634253112,-524.47025457,0.00020408,2]
[372413175,1752634253122,-460.0,0.00020408,2]
[372413176,1752634253131,-460.0,0.00020408,2]
[372413177,1752634253141,-500.0,0.00020408,2]
[372413178,1752634253151,-460.0,0.00020408,2]
[372413179,1752634253160,-464.71111948,0.00020408,2]
[372413180,1752634253169,-460.0,0.00020408,2]
[372413181,1752634253179,-460.0,0.00020408,2]
[372413182,1752634253188,-460.0,0.00020408,2]
[372413183,1752634253198,-460.0,0.00020408,2]
[372413184,1752634253207,-460.0,0.00020408,2]
[372413185,1752634253217,-460.0,0.00020408,2]
[372413186,1752634253228,-460.0,0.00020408,2]
[372413187,1752634253241,-460.0,0.00020408,2]
[372413188,1752634253250,-460.0,0.00020408,2]
[372413189,1752634253260,-460.0,0.00020408,2]
[372413190,1752634253270,-460.0,0.00020408,2]
[372413191,1752634253295,-460.0,0.00020408,2]
[372413192,1752634253308,-460.0,0.00020408,2]
[372413193,1752634253318,-460.0,0.00020408,2]
[372413194,1752634253328,-460.0,0.00020408,2]
[372413195,1752634253338,-460.0,0.00020408,2]
[372413196,1752634253348,-460.78539785,0.00020408,2]
[372413197,1752634253358,-297.10727728,0.00020408,2]
[372413198,1752634253368,-460.0,0.00020408,2]
[372413199,1752634253378,-460.0,0.00020408,2]
[372413200,1752634253389,-460.0,0.00020408,2]
[372413201,1752634253399,-460.0,0.00020408,2]
[372413202,1752634253408,-460.0,0.00020408,2]
[372413203,1752634253418,-460.0,0.00020408,2]
[372413204,1752634253427,-461.53139428,0.00020408,2]
[372413205,1752634253437,-460.0,0.00020408,2]
[372413206,1752634253448,-460.0,0.00020408,2]
[372413207,1752634253459,-460.0,0.00020408,2]
[372413208,1752634253469,-500.0,0.00020408,2]
[372413209,1752634253479,-500.0,0.00020408,2]
[372413210,1752634253491,-500.0,0.00020408,2]
[372413211,1752634253500,-500.0,0.00020408,2]
[372413212,1752634253510,-500.0,0.00020408,2]
[372413213,1752634253521,-500.0,0.00020408,2]
[372413214,1752634253531,-500.0,0.00020408,2]
[372413215,1752634253542,-501.58314376,0.00020473,2]
[372413216,1752634253551,-500.0,0.00020506,2]
[372413217,1752634253562,-462.44115738,0.00020507,2]
[372413218,1752634253572,-460.0,0.00020507,2]
[372413219,1752634253582,-460.0,0.00020507,2]
[372413220,1752634253592,-460.0,0.00020507,2]
[372413221,1752634253602,-460.0,0.00020507,2]
[372413222,1752634253611,-460.0,0.00020507,2]
[372413223,1752634253621,-460.0,0.00020507,2]
[372413224,1752634253631,-460.0,0.00020507,2]
[372413225,1752634253641,-460.0,0.00020507,2]
[372413226,1752634253651,-460.0,0.00020507,2]
[372413227,1752634253660,-460.0,0.00020507,2]
[372413228,1752634253670,-460.0,0.00020507,2]
[372413229,1752634253680,-460.0,0.00020507,2]
[372413230,1752634253690,-460.0,0.00020507,2]
[372413231,1752634253700,-460.0,0.00020507,2]
[372413232,1752634253709,-500.0,0.00020508,2]
[372413233,1752634253719,-500.0,0.00020508,2]
[372413234,1752634253729,-460.0,0.00020509,2]
[372413235,1752634253738,-475.20095669,0.00020509,2]
[372413236,1752634253748,-460.0,0.00020509,2]
[372413237,1752634253761,-460.0,0.00020509,2]
[372413238,1752634253771,-461.87358625,0.00020509,2]
[372413239,1752634253781,-460.0,0.00020509,2]
[372413240,1752634253791,-460.0,0.00020509,2]
[372413241,1752634253802,-460.0,0.00020509,2]
[372413242,1752634253812,-460.0,0.00020509,2]
[372413243,1752634253822,-500.0,0.00020509,2]
[372413244,1752634253833,-460.0,0.00020509,2]
[372413245,1752634253843,-461.88686038,0.00020509,2]
[372413246,1752634253853,-201.94288971,0.00020509,2]
[372413247,1752634253863,-500.0,0.00020509,2]
[372413248,1752634253874,-500.0,0.00020509,2]
[372413249,1752634253884,-500.0,0.00020509,2]
[372413250,1752634253895,-500.0,0.00020509,2]
[372413251,1752634253905,-151.0,0.00020509,2]
[372413252,1752634253915,-500.0,0.00020509,2]
[372413253,1752634253925,-202.27703485,0.00020509,2]
[372413254,1752634253935,-500.0,0.00020509,2]
[372413255,1752634253946,-151.0,0.00020509,2]
[372413256,1752634253956,-500.0,0.00020509,2]
[372413257,1752634253966,-500.0,0.00020509,2]
[372413258,1752634253975,-299.65057117,0.00020509,2]
[372413259,1752634253985,-151.0,0.00020509,2]
[372413260,1752634253995,-151.83380244,0.00020509,2]
[372413261,1752634254006,-151.0,0.00020509,2]
[372413262,1752634254015,-151.0,0.00020509,2]
[372413263,1752634254028,-151.0,0.00020509,2]
[372413264,1752634254038,-500.0,0.00020509,2]
[372413265,1752634254047,-500.0,0.00020509,2]
[372413266,1752634254058,-244.53927252,0.00020509,2]
[372413267,1752634254067,-500.0,0.00020509,2]
[372413268,1752634254077,-151.0,0.00020509,2]
[372413269,1752634254087,-500.0,0.00020509,2]
[372413270,1752634254097,-500.0,0.00020509,2]
[372413271,1752634254107,-151.0,0.00020509,2]
[372413272,1752634254117,-151.0,0.00020509,2]
[372413273,1752634254126,-152.38279011,0.00020509,2]
[372413274,1752634254135,-500.0,0.00020536,2]
[372413275,1752634254145,-595.278932,0.00020536,2]
[372413276,1752634254155,-500.0,0.00020536,2]
[372413277,1752634254164,-500.0,0.00020536,2]
[372413278,1752634254174,-500.0,0.00020536,2]
[372413279,1752634254183,-152.91199092,0.00020536,2]
[372413280,1752634254193,-500.0,0.00020536,2]
[372413281,1752634254202,-500.99755877,0.00020536,2]
[372413282,1752634254211,-202.21252349,0.00020536,2]
[372413283,1752634254221,-500.0,0.00020536,2]
[372413284,1752634254230,-502.09631992,0.00020536,2]
[372413285,1752634254240,-151.38562182,0.00020536,2]
[372413286,1752634254249,-151.0,0.00020536,2]
[372413287,1752634254259,-151.0,0.00020536,2]
[372413288,1752634254269,-500.0,0.00020536,2]
[372413289,1752634254278,-500.0,0.00020536,2]
[372413290,1752634254289,-500.0,0.00020536,2]
[372413291,1752634254299,-500.0,0.00020536,2]
[372413292,1752634254309,-500.0,0.00020536,2]
[372413293,1752634254319,-151.0,0.00020536,2]
[372413294,1752634254329,-500.0,0.00020564,2]
[372413295,1752634254339,-500.0,0.00020564,2]
[372413296,1752634254349,-500.0,0.00020564,2]
[372413297,1752634254359,-458.52976334,0.00020564,2]
[372413298,1752634254373,-500.0,0.00020564,2]
[372413299,1752634254383,-500.0,0.00020564,2]
[372413300,1752634254393,-151.79719452,0.00020564,2]
[372413301,1752634254402,-151.0,0.00020564,2]
[372413302,1752634254412,-500.0,0.00020564,2]
[372413303,1752634254422,-500.0,0.00020564,2]
[372413304,1752634254432,-295.15759495,0.00020564,2]
[372413305,1752634254442,-500.0,0.00020564,2]
[372413306,1752634254452,-500.0,0.00020564,2]
[372413307,1752634254462,-152.64276144,0.00020564,2]
[372413308,1752634254472,-157.145541,0.00020591,2]
[372413309,1752634254481,-151.0,0.00020591,2]
[372413310,1752634254492,-206.59335,0.00020591,2]
[372413311,1752634254502,-206.59335,0.00020591,2]
[372413312,1752634254513,-151.557843,0.00020591,2]
[372413313,1752634254523,-500.0,0.00020591,2]
[372413314,1752634254532,-500.0,0.00020591,2]
[372413315,1752634254543,-341.36921616,0.00020591,2]
[372413316,1752634254552,-500.0,0.00020591,2]
[372413317,1752634254563,-500.0,0.00020591,2]
[372413318,1752634254573,-221.10067649,0.00020591,2]
[372413319,1752634254582,-609.28306768,0.00020591,2]
[372413320,1752634254592,-500.0,0.00020591,2]
[372413321,1752634254602,-500.0,0.00020591,2]
[372413322,1752634254611,-500.0,0.00020591,2]
[372413323,1752634254621,-500.0,0.00020607,2]
[372413324,1752634254631,-435.12,0.0002061,3]
[372413325,1752634254640,-460.0,0.00020615,2]
[372413326,1752634254650,-776.63,0.00020615,2]
[372413327,1752634254661,-460.0,0.00020616,2]
[372413328,1752634254671,-460.0,0.00020617,2]
[372413329,1752634254680,-775.91,0.00020617,2]
[372413330,1752634254690,-460.0,0.00020617,2]
[372413331,1752634254700,-460.0,0.00020617,2]
[372413332,1752634254710,-460.0,0.00020617,2]
[372413333,1752634254719,-460.0,0.00020617,2]
[372413334,1752634254729,-151.0,0.00020617,2]
[372413335,1752634254739,-151.0,0.00020617,2]
[372413336,1752634254751,-460.0,0.00020617,2]
[372413337,1752634254762,-460.0,0.00020618,2]
[372413338,1752634254772,-460.0,0.00020618,2]
[372413339,1752634254782,-460.0,0.00020618,2]
[372413340,1752634254792,-460.0,0.00020618,2]
[372413341,1752634254803,-505.53,0.00020618,2]
[372413342,1752634254813,-648.37,0.00020618,2]
[372413343,1752634254822,-460.0,0.00020618,2]
[372413344,1752634254832,-460.0,0.00020618,2]
[372413345,1752634254842,-557.75804198,0.00020618,2]
[372413346,1752634254852,-151.0,0.00020618,2]
[372413347,1752634254861,-151.0,0.00020618,2]
[372413348,1752634254871,-460.0,0.00020618,2]
[372413349,1752634254881,-485.1,0.00020618,2]
[372413350,1752634254890,-460.0,0.00020618,2]
[372413351,1752634254900,-460.0,0.00020618,2]
[372413352,1752634254910,-460.0,0.00020618,2]
[372413353,1752634254919,-551.3368871,0.00020618,2]
[372413354,1752634254929,-500.0,0.00020619,2]
[372413355,1752634254939,-457.68574617,0.00020619,2]
[372413356,1752634254948,-500.0,0.00020619,2]
[372413357,1752634254958,-500.0,0.00020619,2]
[372413358,1752634254968,-500.0,0.00020619,2]
[372413359,1752634254977,-500.0,0.00020619,2]
[372413360,1752634255089,-258.74690344,0.00020619,2]
[372413361,1752634255113,-151.600963,0.00020619,2]
[372413362,1752634255123,-460.0,0.00020619,2]
[372413363,1752634255133,-460.0,0.0002062,2]
[372413364,1752634255142,-465.1,0.0002062,2]
[372413365,1752634255152,-460.0,0.0002062,2]
[372413366,1752634255161,-447.96,0.0002062,2]
[372413367,1752634255171,-460.0,0.0002062,2]
[372413368,1752634255180,-460.0,0.0002062,2]
[372413369,1752634255190,-347.42,0.0002062,2]
[372413370,1752634255199,-431.07194297,0.0002062,2]
[372413371,1752634255209,-460.0,0.0002062,2]
[372413372,1752634255219,-460.0,0.0002062,2]
[372413373,1752634255229,-460.0,0.0002062,2]
[372413374,1752634255240,-460.0,0.0002062,2]
[372413375,1752634255250,-460.0,0.0002062,2]
[372413376,1752634255259,-500.0,0.00020646,2]
[372413377,1752634255270,-500.0,0.00020646,2]
[372413378,1752634255280,-500.0,0.00020646,2]
[372413379,1752634255290,-500.0,0.00020646,2]
[372413380,1752634255300,-500.0,0.00020646,2]
[372413381,1752634255310,-184.160775,0.00020646,2]
[372413382,1752634255319,-184.160775,0.00020646,2]
[372413383,1752634255329,-500.0,0.00020673,2]
[372413384,1752634255338,-500.0,0.00020673,2]
[372413385,1752634255349,-500.0,0.00020673,2]
[372413386,1752634255361,-500.0,0.00020673,2]
[372413387,1752634255371,-500.0,0.00020673,2]
[372413388,1752634255381,-237.6269674,0.00020681,2]
[372413389,1752634255391,-460.0,0.00020681,2]
[372413390,1752634255400,-460.0,0.00020681,2]
[372413391,1752634255410,-460.0,0.00020681,2]
[372413392,1752634255420,-460.0,0.00020681,2]
[372413393,1752634255429,-460.0,0.00020681,2]
[372413394,1752634255439,-460.0,0.00020681,2]
[372413395,1752634255450,-460.0,0.00020681,2]
[372413396,1752634255460,-460.0,0.00020681,2]
[372413397,1752634255470,-151.0,0.00020681,2]
[372413398,1752634255480,-460.0,0.00020681,2]
[372413399,1752634255492,-156.732471,0.00020681,2]
[372413400,1752634255502,-151.0,0.00020681,2]
[372413401,1752634255511,-460.0,0.00020681,2]
[372413402,1752634255521,-460.0,0.00020681,2]
[372413403,1752634255530,-460.0,0.00020681,2]
[372413404,1752634255541,-188.825005,0.00020681,2]
[372413405,1752634255551,-188.825005,0.00020681,2]
[372413406,1752634255562,-460.0,0.00020681,2]
[372413407,1752634255571,-464.25557226,0.00020681,2]
[372413408,1752634255581,-460.0,0.00020681,2]
[372413409,1752634255590,-460.0,0.00020681,2]
[372413410,1752634255599,-460.0,0.00020681,2]
[372413411,1752634255608,-460.0,0.00020681,2]
[372413412,1752634255617,-460.0,0.00020681,2]
[372413413,1752634255627,-460.0,0.00020681,2]
[372413414,1752634255636,-460.0,0.00020681,2]
[372413415,1752634255646,-460.0,0.00020681,2]
[372413416,1752634255655,-460.0,0.00020681,2]
[372413417,1752634255664,-460.0,0.00020681,2]
[372413418,1752634255673,-150.92093888,0.00020681,2]
[372413419,1752634255683,-460.0,0.00020681,2]
[372413420,1752634255692,-460.0,0.00020682,2]
[372413421,1752634255702,-460.0,0.00020682,2]
[372413422,1752634255712,-461.67691836,0.00020682,2]
[372413423,1752634255722,-464.58283235,0.00020682,2]
[372413424,1752634255731,-463.23305261,0.00020682,2]
[372413425,1752634255741,-460.0,0.00020682,2]
[372413426,1752634255750,-461.74456936,0.00020682,2]
[372413427,1752634255762,-462.15940206,0.00020682,2]
[372413428,1752634255772,-460.0,0.00020682,2]
[372413429,1752634255781,-460.0,0.00020682,2]
[372413430,1752634255791,-460.0,0.00020682,2]
[372413431,1752634255801,-460.0,0.00020682,2]
[372413432,1752634255811,-462.38852151,0.00020682,2]
[372413433,1752634255820,-460.0,0.00020682,2]
[372413434,1752634255829,-460.0,0.00020682,2]
[372413435,1752634255838,-460.0,0.00020682,2]
[372413436,1752634255848,-460.0,0.00020682,2]
[372413437,1752634255857,-296.25392541,0.00020682,2]
[372413438,1752634255866,-460.0,0.00020682,2]
[372413439,1752634255875,-460.0,0.00020682,2]
[372413440,1752634255885,-460.0,0.00020682,2]
[372413441,1752634255894,-460.0,0.00020682,2]
[372413442,1752634255904,-460.0,0.00020682,2]
[372413443,1752634255913,-460.0,0.00020682,2]
[372413444,1752634255922,-460.0,0.00020682,2]
[372413445,1752634255932,-500.0,0.00020682,2]
[372413446,1752634255941,-460.0,0.00020682,2]
[372413447,1752634255951,-460.0,0.00020682,2]
[372413448,1752634255960,-460.0,0.00020682,2]
[372413449,1752634255970,-460.0,0.00020682,2]
[372413450,1752634255979,-460.0,0.00020682,2]
[372413451,1752634255989,-460.0,0.00020682,2]
[372413452,1752634255998,-460.0,0.00020682,2]
[372413453,1752634256007,-460.0,0.00020682,2]
[372413454,1752634256016,-460.0,0.00020682,2]
[372413455,1752634256026,-460.0,0.00020682,2]
[372413456,1752634256035,-460.0,0.00020682,2]
[372413457,1752634256045,-460.0,0.00020682,2]
[372413458,1752634256055,-460.0,0.00020682,2]
[372413459,1752634256064,-460.0,0.00020682,2]
[372413460,1752634256074,-460.0,0.00020682,2]
[372413461,1752634256083,-461.83310505,0.00020682,2]
[372413462,1752634256094,-460.0,0.00020682,2]
[372413463,1752634256103,-460.0,0.00020682,2]
[372413464,1752634256113,-460.0,0.00020682,2]
[372413465,1752634256126,-460.0,0.00020682,2]
[372413466,1752634256136,-461.28366175,0.00020682,2]
[372413467,1752634256146,-460.0,0.00020682,2]
[372413468,1752634256155,-460.0,0.00020682,2]
[372413469,1752634256165,-460.0,0.00020682,2]
[372413470,1752634256174,-500.0,0.00020701,2]
[372413471,1752634256184,-500.0,0.00020701,2]
[372413472,1752634256194,-500.0,0.00020701,2]
[372413473,1752634256204,-500.0,0.00020701,2]
[372413474,1752634256213,-287.24415917,0.00020701,2]
[372413475,1752634256223,-1680.0,0.00020709,2]
[372413476,1752634256232,-415.92489047,0.00020728,2]
[372413477,1752634256241,-500.0,0.00020728,2]
[372413478,1752634256251,-500.0,0.00020728,2]
[372413479,1752634256261,-421.82089474,0.00020728,2]
[372413480,1752634256270,-154.51594587,0.00020756,2]
[372413481,1752634256280,-500.0,0.00020756,2]
[372413482,1752634256289,-236.24939807,0.00020768,2]
[372413483,1752634256299,-460.0,0.00020781,2]
[372413484,1752634256309,-460.0,0.00020781,2]
[372413485,1752634256318,-460.0,0.00020781,2]
[372413486,1752634256329,-460.0,0.00020781,2]
[372413487,1752634256339,-460.0,0.00020781,2]
[372413488,1752634256349,-460.0,0.00020781,2]
[372413489,1752634256358,-460.0,0.00020781,2]
[372413490,1752634256367,-460.0,0.00020781,2]
[372413491,1752634256377,-460.0,0.00020781,2]
[372413492,1752634256387,-460.0,0.00020781,2]
[372413493,1752634256396,-460.0,0.00020781,2]
[372413494,1752634256405,-460.0,0.00020781,2]
[372413495,1752634256415,-460.0,0.00020781,2]
[372413496,1752634256424,-460.0,0.00020781,2]
[372413497,1752634256434,-500.0,0.00020783,2]
[372413498,1752634256444,-463.65475308,0.00020783,2]
[372413499,1752634256455,-460.0,0.00020783,2]
[372413500,1752634256464,-460.0,0.00020783,2]
[372413501,1752634256474,-460.0,0.00020783,2]
[372413502,1752634256483,-460.0,0.00020783,2]
[372413503,1752634256493,-450.0,0.00020783,2]
[372413504,1752634256503,-460.0,0.00020783,2]
[372413505,1752634256513,-500.0,0.0002081,2]
[372413506,1752634256523,-512.47670857,0.00020838,2]
[372413507,1752634256533,-405.88671789,0.00020857,2]
[372413508,1752634256542,-460.0,0.00020889,2]
[372413509,1752634256551,-776.63,0.00020889,2]
[372413510,1752634256561,-460.0,0.00020891,2]
[372413511,1752634256572,-775.91,0.00020891,2]
[372413512,1752634256582,-460.0,0.00020891,2]
[372413513,1752634256591,-460.0,0.00020891,2]
[372413514,1752634256601,-460.0,0.00020891,2]
[372413515,1752634256611,-460.0,0.00020891,2]
[372413516,1752634256620,-460.0,0.00020891,2]
[372413517,1752634256629,-550.88154443,0.00020892,2]
[372413518,1752634256639,-393.32905259,0.00020892,2]
[372413519,1752634256649,-648.37,0.00020892,2]
[372413520,1752634256658,-331.57552101,0.00020892,2]
[372413521,1752634256668,-460.0,0.00020892,2]
[372413522,1752634256677,-460.0,0.00020892,2]
[372413523,1752634256687,-460.0,0.00020892,2]
[372413524,1752634256696,-173.4,0.00020893,2]